bitfinex/quotes_SOLUSD_20220118
["timestamp","ask_amount","ask_price","bid_price","bid_amount"]
[1642524401198,36.98771363,137.63,137.56,10.9019]
[1642524401398,36.98771363,137.63,137.57,6.0]
[1642524402604,2.906,137.62,137.57,10.9016]
[1642524403001,2.906,137.62,137.58,6.0]
[1642524403201,39.89371363,137.63,137.58,6.0]
[1642524403427,50.79641363,137.63,137.54,48.8002]
[1642524403635,0.25,137.62,137.54,2.906]
[1642524403832,2.907,137.61,137.54,2.906]
[1642524404130,39.96263418,137.6,137.54,2.906]
[1642524404329,2.907,137.59,137.54,2.906]
[1642524404630,39.96263418,137.6,137.54,2.906]
[1642524404832,39.96263418,137.6,137.52,42.12816786]
[1642524405031,39.96263418,137.6,137.53,0.25]
[1642524405231,39.96263418,137.6,137.53,6.25]
[1642524405430,50.86903418,137.6,137.53,6.25]
[1642524405830,50.86903418,137.6,137.53,0.25]
[1642524406029,3.157,137.59,137.5,2.907]
[1642524406630,10.9083,137.57,137.5,2.907]
[1642524406830,40.88140091,137.56,137.5,2.907]
[1642524407230,40.88140091,137.56,137.51,0.25]
[1642524409135,10.9065,137.58,137.51,0.25]
[1642524409338,2.908,137.63,137.51,10.65295323]
[1642524409535,13.427,137.66,137.52,14.79761087]
[1642524409736,2.907,137.66,137.53,10.77]
[1642524409938,4.46573113,137.65,137.54,2.907]
[1642524410138,49.15750832,137.64,137.55,16.52]
[1642524410338,52.06450832,137.64,137.55,16.77]
[1642524411340,49.15750832,137.64,137.56,4.59895323]
[1642524411540,49.15750832,137.64,137.58,10.9006]
[1642524411741,49.15750832,137.64,137.59,0.25]
[1642524412741,49.15750832,137.64,137.59,11.1505]
[1642524412941,49.15750832,137.64,137.59,10.9005]
[1642524413646,49.15750832,137.64,137.57,44.9280638]
[1642524413847,49.15750832,137.64,137.58,10.9013]
[1642524414650,49.15750832,137.64,137.55,74.5446]
[1642524414852,60.05940832,137.64,137.55,38.2095]
[1642524415051,60.05940832,137.64,137.55,13.426]
[1642524415249,2.14127051,137.63,137.56,11.1528]
[1642524415549,2.14127051,137.63,137.56,10.9028]
[1642524416549,1.89127051,137.63,137.56,54.53853644]
[1642524416751,0.36500896,137.65,137.57,4.84895323]
[1642524416951,0.36500896,137.65,137.59,10.8996]
[1642524417150,0.36500896,137.65,137.6,0.25]
[1642524417554,0.36500896,137.65,137.57,27.3744]
[1642524417753,0.36500896,137.65,137.58,0.25]
[1642524417950,0.36500896,137.65,137.59,10.9006]
[1642524418351,0.36500896,137.65,137.59,55.03482338]
[1642524418553,0.36500896,137.65,137.6,1.94195323]
[1642524418756,0.36500896,137.65,137.6,17.97595323]
[1642524418952,0.36500896,137.65,137.6,13.378]
[1642524419553,0.36500896,137.65,137.61,10.8976]
[1642524420754,0.36500896,137.65,137.62,0.25]
[1642524420959,0.36500896,137.65,137.63,10.8964]
[1642524422254,0.36500896,137.65,137.61,2.906]
[1642524423053,0.36500896,137.65,137.61,49.85755613]
[1642524423352,0.36500896,137.65,137.62,0.25]
[1642524423553,0.36500896,137.65,137.62,11.986]
[1642524423764,0.36500896,137.65,137.63,2.906]
[1642524424152,0.36500896,137.65,137.64,0.25]
[1642524424355,0.36500896,137.65,137.64,55.0329883]
[1642524424756,2.04837366,137.68,137.64,55.0329883]
[1642524424956,2.04837366,137.68,137.65,2.904]
[1642524425157,2.04837366,137.68,137.66,0.25]
[1642524425358,0.03791311,137.7,137.66,11.1446]
[1642524425556,0.03791311,137.7,137.67,48.55330106]
[1642524425756,0.03791311,137.7,137.68,0.25]
[1642524425956,0.03791311,137.7,137.68,6.25]
[1642524426358,0.03791311,137.7,137.68,17.1419]
[1642524426859,0.03791311,137.7,137.68,16.8919]
[1642524427057,0.03791311,137.7,137.66,10.52]
[1642524427258,0.03791311,137.7,137.64,2.904]
[1642524427961,0.03791311,137.7,137.65,47.19482255]
[1642524429060,0.03791311,137.7,137.64,2.904]
[1642524429259,0.03791311,137.7,137.63,10.52]
[1642524429260,2.94191311,137.7,137.63,10.52]
[1642524430094,2.94191311,137.7,137.64,38.25486514]
[1642524430695,2.94191311,137.7,137.65,0.25]
[1642524430896,0.03791311,137.7,137.65,0.25]
[1642524431095,0.03791311,137.7,137.65,6.25]
[1642524431296,0.03791311,137.7,137.66,10.8941]
[1642524431496,0.03791311,137.7,137.66,13.7981]
[1642524431695,0.03791311,137.7,137.67,41.43644602]
[1642524431897,0.03791311,137.7,137.68,0.365]
[1642524433000,0.03791311,137.7,137.65,29.8887]
[1642524433498,0.03791311,137.7,137.67,10.8938]
[1642524433697,0.03791311,137.7,137.65,23.8887]
[1642524433896,2.94191311,137.7,137.65,66.00888259]
[1642524434098,2.94191311,137.7,137.65,42.12018259]
[1642524434296,2.94191311,137.7,137.63,12.21195323]
[1642524434497,2.94191311,137.7,137.64,73.44]
[1642524434696,0.03791311,137.7,137.64,73.44]
[1642524435096,0.03791311,137.7,137.64,72.426302]
[1642524435698,0.03791311,137.7,137.65,47.07374777]
[1642524435896,0.03791311,137.7,137.65,57.96894777]
[1642524436797,0.03791311,137.7,137.65,59.660901]
[1642524436997,0.03791311,137.7,137.66,13.424]
[1642524437196,0.03791311,137.7,137.67,10.8928]
[1642524437496,0.03791311,137.7,137.68,132.70138843]
[1642524437698,0.03791311,137.7,137.68,134.90334166]
[1642524437897,0.03791311,137.7,137.68,62.47703966]
[1642524438098,0.03791311,137.7,137.68,62.21703966]
[1642524438302,0.03791311,137.7,137.69,10.8906]
[1642524438703,0.03791311,137.7,137.69,11.1406]
[1642524439100,0.03791311,137.7,137.68,43.75508643]
[1642524439703,5.69939994,137.69,137.66,35.4172]
[1642524439903,5.69939994,137.69,137.67,11.5077]
[1642524440104,0.03791311,137.7,137.67,0.365]
[1642524441103,3.03219997,137.69,137.67,0.365]
[1642524441305,5.69939994,137.69,137.66,10.52]
[1642524444108,5.69939994,137.69,137.67,43.04127304]
[1642524444308,5.69939994,137.69,137.67,43.40627304]
[1642524444510,0.03791311,137.7,137.67,43.40627304]
[1642524444909,0.03791311,137.7,137.67,0.615]
[1642524445310,0.03791311,137.7,137.67,0.365]
[1642524445710,0.03791311,137.7,137.66,10.52]
[1642524445915,37.25849868,137.7,137.64,24.8945]
[1642524446112,48.15559868,137.7,137.62,36.81441039]
[1642524446512,48.15559868,137.7,137.63,6.0]
[1642524446913,48.15559868,137.7,137.62,6.0]
[1642524448316,3.154,137.69,137.62,6.0]
[1642524448519,10.8995,137.67,137.61,6.0]
[1642524448815,54.88795849,137.67,137.61,46.21929349]
[1642524449416,54.88795849,137.67,137.61,6.0]
[1642524449818,10.9011,137.65,137.57,26.321741]
[1642524450219,10.9011,137.65,137.58,0.25]
[1642524450516,10.9011,137.65,137.58,35.68184903]
[1642524451120,37.22058557,137.64,137.58,35.68184903]
[1642524452220,48.12268557,137.64,137.58,35.68184903]
[1642524452423,48.12268557,137.64,137.57,24.3268]
[1642524452623,48.12268557,137.64,137.57,2.906]
[1642524452820,3.156,137.63,137.57,2.906]
[1642524453422,14.0592,137.63,137.57,2.906]
[1642524453821,13.8092,137.63,137.56,48.4036]
[1642524454023,13.8092,137.63,137.57,0.25]
[1642524454221,13.8092,137.63,137.56,48.4036]
[1642524455125,10.9057,137.6,137.54,2.907]
[1642524455324,10.9057,137.6,137.55,0.25]
[1642524455723,48.66653102,137.6,137.55,0.25]
[1642524456352,48.66653102,137.6,137.54,0.25]
[1642524456753,2.907,137.61,137.54,0.25]
[1642524456953,38.6292,137.63,137.55,2.907]
[1642524457158,35.7222,137.63,137.56,0.25]
[1642524457658,35.7222,137.63,137.55,2.907]
[1642524457854,40.59206149,137.62,137.55,2.907]
[1642524458055,10.9046,137.61,137.55,2.907]
[1642524458254,40.59206149,137.62,137.55,2.907]
[1642524458255,2.907,137.6,137.55,2.907]
[1642524458455,2.907,137.61,137.55,2.907]
[1642524458659,0.25,137.6,137.55,2.907]
[1642524458857,43.52398257,137.58,137.55,2.907]
[1642524459055,5.69939994,137.57,137.55,2.907]
[1642524459658,8.60639994,137.57,137.55,2.32896263]
[1642524460058,8.60639994,137.57,137.51,114.37400843]
[1642524460457,0.25,137.56,137.51,114.37400843]
[1642524460658,40.01502411,137.55,137.51,114.37400843]
[1642524461658,127.6442,137.64,137.52,58.158]
[1642524461659,4.95637366,137.63,137.52,58.158]
[1642524461861,4.95637366,137.63,137.52,92.868]
[1642524462060,4.95637366,137.63,137.52,31.87764976]
[1642524462562,4.95537366,137.65,137.53,44.61336281]
[1642524462760,2.04837366,137.65,137.54,24.5815]
[1642524462959,2.04837366,137.65,137.54,42.78114976]
[1642524463160,2.04837366,137.65,137.54,43.04114976]
[1642524463361,2.04837366,137.65,137.54,65.70474976]
[1642524463560,2.04837366,137.65,137.54,53.2451]
[1642524463762,40.83927922,137.66,137.54,53.2451]
[1642524463960,2.906,137.65,137.54,50.3381]
[1642524464159,2.906,137.65,137.54,21.4245]
[1642524464160,8.906,137.65,137.54,21.4245]
[1642524464362,19.8073,137.65,137.54,21.4245]
[1642524464562,0.25,137.64,137.54,21.4245]
[1642524464764,2.907,137.63,137.54,21.4245]
[1642524465163,40.04172746,137.62,137.54,21.4245]
[1642524465363,2.907,137.61,137.54,21.4245]
[1642524465564,13.8119,137.61,137.54,21.4245]
[1642524466064,13.8119,137.61,137.54,10.9045]
[1642524466463,13.8119,137.61,137.55,0.25]
[1642524466663,2.907,137.61,137.56,10.9039]
[1642524466865,50.69542746,137.62,137.56,10.9039]
[1642524467464,50.69542746,137.62,137.55,1.69194992]
[1642524467666,50.69542746,137.62,137.53,37.8525]
[1642524467867,50.69542746,137.62,137.54,0.25]
[1642524468468,50.69542746,137.62,137.55,10.9047]
[1642524468669,2.907,137.61,137.56,35.69376497]
[1642524468868,50.69542746,137.62,137.56,35.69376497]
[1642524469067,39.79172746,137.62,137.56,37.38571489]
[1642524469468,39.79172746,137.62,137.54,2.907]
[1642524469669,39.79172746,137.62,137.56,10.9038]
[1642524470070,39.79172746,137.62,137.57,0.25]
[1642524470269,10.9021,137.64,137.57,0.25]
[1642524470477,10.9021,137.64,137.57,1.94194992]
[1642524470674,24.6302,137.65,137.58,10.9018]
[1642524471072,2.907,137.66,137.59,0.25]
[1642524471272,35.23488752,137.66,137.59,45.81092751]
[1642524471673,35.23488752,137.66,137.59,2.906]
[1642524471875,2.906,137.65,137.57,24.3976]
[1642524472075,2.906,137.65,137.56,22.71964976]
[1642524472277,0.25,137.64,137.56,10.52]
[1642524472480,13.809,137.63,137.56,10.52]
[1642524472675,45.39611916,137.62,137.56,21.424]
[1642524473476,56.30041916,137.62,137.56,21.424]
[1642524473677,56.30041916,137.62,137.57,0.25]
[1642524475111,56.30041916,137.62,137.55,14.0617]
[1642524475307,56.30041916,137.62,137.55,11.1547]
[1642524475510,56.30041916,137.62,137.55,21.6747]
[1642524475806,56.30041916,137.62,137.55,21.4247]
[1642524476205,10.9054,137.6,137.55,5.95614169]
[1642524476406,76.097,137.59,137.52,1.994941]
[1642524476707,76.347,137.59,137.52,1.994941]
[1642524476908,19.76632921,137.58,137.52,1.994941]
[1642524477106,2.908,137.57,137.52,1.994941]
[1642524477307,10.156,137.57,137.52,1.994941]
[1642524477508,21.0656,137.57,137.5,114.2]
[1642524478108,2.908,137.57,137.49,47.58896601]
[1642524478407,2.908,137.59,137.49,47.58896601]
[1642524478607,3.158,137.59,137.49,47.58896601]
[1642524478807,2.04837366,137.58,137.49,47.58896601]
[1642524479009,2.04837366,137.58,137.49,50.49696601]
[1642524479308,2.04837366,137.58,137.5,0.25]
[1642524479510,2.04837366,137.58,137.51,2.908]
[1642524479709,2.04837366,137.58,137.52,0.25]
[1642524479908,26.41767366,137.61,137.53,2.908]
[1642524480108,2.907,137.6,137.51,2.907]
[1642524480309,44.96314029,137.59,137.5,37.8875]
[1642524480507,2.908,137.58,137.52,35.76912628]
[1642524480708,2.908,137.59,137.53,0.25]
[1642524480907,24.3693,137.61,137.53,3.157]
[1642524481507,24.3693,137.61,137.54,10.9044]
[1642524481714,12.95207366,137.62,137.56,49.63742318]
[1642524481715,2.04837366,137.62,137.56,49.63742318]
[1642524481909,2.907,137.64,137.56,49.63742318]
[1642524481910,2.04837366,137.64,137.56,49.63742318]
[1642524482111,2.04837366,137.64,137.57,3.156]
[1642524482308,2.04837366,137.64,137.57,13.676]
[1642524482509,2.04837366,137.64,137.57,24.577]
[1642524482708,48.23621637,137.65,137.57,24.577]
[1642524482910,2.906,137.64,137.57,24.577]
[1642524483109,2.906,137.65,137.57,24.577]
[1642524483312,15.85537366,137.66,137.57,24.577]
[1642524483808,0.25,137.65,137.57,24.327]
[1642524484008,48.78605434,137.64,137.57,24.327]
[1642524485109,59.68805434,137.64,137.57,13.426]
[1642524485309,0.25,137.63,137.57,10.52]
[1642524485609,2.906,137.62,137.57,10.52]
[1642524486010,19.53239403,137.61,137.52,15.421941]
[1642524486210,13.8125,137.6,137.52,10.52]
[1642524486509,19.8125,137.6,137.51,1.994941]
[1642524486711,0.25,137.59,137.51,1.994941]
[1642524486912,2.908,137.58,137.51,1.994941]
[1642524487109,36.77622948,137.57,137.48,14.1845823]
[1642524487312,2.908,137.56,137.48,10.52]
[1642524487711,0.25,137.55,137.48,10.52]
[1642524487910,2.908,137.54,137.48,10.52]
[1642524488211,31.29421889,137.54,137.48,10.52]
[1642524488811,42.20501889,137.54,137.48,10.52]
[1642524489011,0.25,137.53,137.48,10.52]
[1642524489211,1.895962,137.52,137.48,10.52]
[1642524489417,9.765962,137.52,137.45,12.514941]
[1642524489615,37.02622948,137.51,137.45,12.514941]
[1642524489819,2.908,137.5,137.45,1.994941]
[1642524490017,13.8224,137.5,137.45,1.994941]
[1642524490413,0.25,137.49,137.44,1.994941]
[1642524490615,2.908,137.48,137.44,1.994941]
[1642524490817,0.25,137.49,137.44,1.994941]
[1642524491015,10.9162,137.48,137.44,1.994941]
[1642524491316,2.908,137.5,137.44,1.994941]
[1642524491616,2.908,137.51,137.44,1.994941]
[1642524491816,23.5058,137.53,137.45,3.158]
[1642524492015,2.908,137.54,137.45,3.158]
[1642524492217,10.9109,137.53,137.46,0.25]
[1642524492419,2.908,137.54,137.46,0.25]
[1642524492617,2.908,137.55,137.46,48.06997394]
[1642524492817,50.70571362,137.56,137.47,2.908]
[1642524493016,48.65733996,137.56,137.47,4.59994992]
[1642524493216,48.65733996,137.56,137.48,0.25]
[1642524493416,48.65733996,137.56,137.5,51.13421034]
[1642524493617,48.65733996,137.56,137.5,10.9061]
[1642524493820,48.65733996,137.56,137.47,2.908]
[1642524494117,3.158,137.55,137.46,10.52]
[1642524494519,2.908,137.55,137.47,0.25]
[1642524494718,48.65733996,137.56,137.47,48.81938281]
[1642524494923,48.65733996,137.56,137.47,59.33938281]
[1642524495121,6.0,137.55,137.47,59.33938281]
[1642524495522,6.0,137.55,137.49,10.9082]
[1642524496220,6.0,137.55,137.5,44.98857854]
[1642524496421,6.0,137.55,137.51,10.9062]
[1642524496634,2.908,137.58,137.51,10.9062]
[1642524496822,6.0,137.57,137.51,10.9062]
[1642524497021,2.908,137.58,137.51,10.9062]
[1642524497223,2.04837366,137.61,137.52,13.678]
[1642524497426,2.04837366,137.61,137.53,48.37823339]
[1642524497623,2.04837366,137.61,137.54,10.9033]
[1642524497823,40.80369309,137.62,137.54,21.6733]
[1642524498722,0.25,137.61,137.54,21.6733]
[1642524498924,3.157,137.61,137.54,21.6733]
[1642524501425,2.907,137.61,137.54,21.6733]
[1642524501825,53.52347366,137.65,137.55,8.907]
[1642524502026,4.95537366,137.65,137.56,10.52]
[1642524502227,2.907,137.65,137.58,10.9008]
[1642524502428,2.04837366,137.66,137.59,45.19258492]
[1642524502632,4.95437366,137.66,137.59,45.19258492]
[1642524503431,13.8068,137.66,137.59,56.09298492]
[1642524504227,0.25,137.65,137.59,10.9004]
[1642524504835,11.1517,137.65,137.57,2.906]
[1642524505028,2.906,137.64,137.57,2.906]
[1642524505231,17.93034578,137.63,137.57,2.906]
[1642524506431,17.93034578,137.63,137.57,10.9024]
[1642524507129,2.906,137.64,137.57,10.9024]
[1642524508329,11.1517,137.65,137.57,10.9024]
[1642524508529,25.88375207,137.63,137.57,10.9024]
[1642524509230,25.88375207,137.63,137.56,10.52]
[1642524509231,0.25,137.62,137.56,10.52]
[1642524509430,2.907,137.61,137.53,10.52]
[1642524509633,2.907,137.61,137.54,6.0]
[1642524509832,2.907,137.61,137.54,6.25]
[1642524510232,50.1846963,137.6,137.54,6.25]
[1642524510834,39.2786963,137.6,137.54,6.25]
[1642524511446,2.907,137.61,137.54,6.25]
[1642524511639,2.907,137.61,137.54,17.1549]
[1642524512736,0.25,137.6,137.54,16.9049]
[1642524512938,2.907,137.59,137.54,16.9049]
[1642524513137,0.25,137.6,137.54,16.9049]
[1642524513138,2.907,137.61,137.54,16.9049]
[1642524513336,3.157,137.61,137.54,16.9049]
[1642524515337,3.157,137.61,137.54,10.9049]
[1642524515539,3.157,137.61,137.51,10.52]
[1642524515966,3.157,137.61,137.49,27.304]
[1642524515967,14.0622,137.61,137.49,27.304]
[1642524516140,36.8375,137.61,137.49,27.304]
[1642524516338,36.8375,137.61,137.49,68.98038828]
[1642524516539,36.8375,137.61,137.49,2.907]
[1642524516740,42.2295,137.61,137.49,2.907]
[1642524517139,54.53855272,137.61,137.49,2.907]
[1642524518045,10.911,137.56,137.49,2.907]
[1642524518240,41.20273086,137.54,137.48,36.28173272]
[1642524518640,0.25,137.55,137.48,36.28173272]
[1642524519041,0.25,137.55,137.45,52.76490843]
[1642524519240,11.1598,137.55,137.46,0.25]
[1642524519440,2.908,137.54,137.45,3.08200843]
[1642524519846,0.25,137.53,137.45,3.08200843]
[1642524520142,2.908,137.52,137.46,47.49094656]
[1642524520445,10.9105,137.54,137.46,47.49094656]
[1642524520645,10.9105,137.54,137.46,49.18289648]
[1642524520842,10.9105,137.54,137.47,0.25]
[1642524521141,51.78253806,137.54,137.47,0.25]
[1642524521645,51.78253806,137.54,137.47,11.1606]
[1642524521845,51.78253806,137.54,137.47,0.25]
[1642524523151,40.87203806,137.54,137.47,0.25]
[1642524523350,26.5156,137.56,137.47,3.158]
[1642524523577,0.25,137.54,137.47,3.158]
[1642524523878,6.0,137.55,137.47,15.76034992]
[1642524524077,6.0,137.55,137.48,6.0]
[1642524524276,6.0,137.55,137.49,49.68525343]
[1642524524476,42.59072027,137.59,137.5,2.908]
[1642524524676,6.25,137.58,137.5,2.908]
[1642524524876,6.0,137.58,137.5,2.908]
[1642524525377,6.0,137.58,137.5,13.8137]
[1642524526076,6.0,137.58,137.5,10.9057]
[1642524526277,0.25,137.57,137.5,10.9057]
[1642524529281,11.158,137.57,137.5,10.9057]
[1642524529481,27.52810176,137.56,137.5,10.9057]
[1642524530182,38.43690176,137.56,137.49,63.50235343]
[1642524530382,38.43690176,137.56,137.5,6.0]
[1642524530583,6.0,137.55,137.5,6.0]
[1642524530886,2.908,137.54,137.46,33.3403]
[1642524531101,9.158,137.55,137.47,6.0]
[1642524531302,10.9107,137.54,137.47,6.0]
[1642524531507,40.54234661,137.53,137.47,6.0]
[1642524531700,2.908,137.53,137.47,6.0]
[1642524531901,6.25,137.55,137.47,6.0]
[1642524532101,2.908,137.54,137.47,6.0]
[1642524533407,13.8184,137.54,137.47,16.9107]
[1642524533814,13.8184,137.54,137.46,10.52]
[1642524534008,13.8184,137.54,137.45,49.23730843]
[1642524534009,2.658,137.54,137.45,3.08200843]
[1642524534830,2.658,137.54,137.45,46.15598152]
[1642524535041,10.9131,137.51,137.45,46.15598152]
[1642524535242,0.25,137.5,137.46,0.25]
[1642524535940,10.9131,137.51,137.46,0.25]
[1642524536537,10.9131,137.51,137.45,39.65294351]
[1642524536742,10.9131,137.51,137.45,0.17400843]
[1642524536743,0.25,137.5,137.45,0.17400843]
[1642524537138,0.25,137.5,137.45,0.42400843]
[1642524537841,11.1635,137.5,137.45,0.42400843]
[1642524538041,17.1635,137.5,137.45,0.42400843]
[1642524538242,17.1635,137.5,137.45,0.17400843]
[1642524538642,38.04857441,137.49,137.45,0.17400843]
[1642524539044,0.25,137.5,137.45,0.17400843]
[1642524540744,0.25,137.5,137.45,0.42400843]
[1642524541350,0.25,137.5,137.45,47.875211]
[1642524541548,0.25,137.5,137.45,0.17400843]
[1642524541748,11.1634,137.5,137.45,0.42400843]
[1642524541948,17.1634,137.5,137.45,0.42400843]
[1642524542648,29.4628961,137.49,137.45,0.42400843]
[1642524542850,0.25,137.48,137.45,0.17400843]
[1642524543050,3.03219997,137.47,137.45,0.17400843]
[1642524543249,5.69939994,137.47,137.45,0.17400843]
[1642524544049,62.94955227,137.46,137.45,0.17400843]
[1642524544248,65.85755227,137.46,137.45,0.09170838]
[1642524544450,38.85755227,137.46,137.45,0.09170838]
[1642524545049,49.77535227,137.46,137.45,0.09170838]
[1642524546551,55.77535227,137.46,137.45,0.09170838]
[1642524546953,128.96535227,137.46,137.45,0.09170838]
[1642524547153,93.2658,137.46,137.45,0.00170838]
[1642524547353,20.0758,137.46,137.45,0.00170838]
[1642524549756,93.2658,137.46,137.45,0.00170838]
[1642524550558,20.0758,137.46,137.45,0.00170838]
[1642524550957,6.0,137.46,137.45,0.00170838]
[1642524551563,6.25,137.46,137.45,0.00170838]
[1642524551962,17.167,137.46,137.45,0.00170838]
[1642524552773,6.25,137.46,137.45,0.00170838]
[1642524555189,17.1669,137.46,137.45,0.00170838]
[1642524556188,16.9169,137.46,137.45,0.00170838]
[1642524557590,17.1669,137.46,137.45,0.00170838]
[1642524557791,90.3569,137.46,137.45,0.00170838]
[1642524560092,17.1669,137.46,137.45,0.00170838]
[1642524560291,6.25,137.46,137.45,0.00170838]
[1642524561193,9.16,137.46,137.45,0.00170838]
[1642524561394,20.0774,137.46,137.45,0.00170838]
[1642524561796,93.2674,137.46,137.45,0.00170838]
[1642524561993,64.0,137.45,137.37,1.994941]
[1642524562194,64.0,137.45,137.34,2.91]
[1642524562195,38.0,137.43,137.33,3.6645823]
[1642524562395,2.911,137.42,137.34,2.05142133]
[1642524562594,9.161,137.42,137.34,2.05142133]
[1642524562995,17.44285925,137.41,137.34,2.05142133]
[1642524563203,3.161,137.4,137.34,2.05142133]
[1642524563395,10.093,137.4,137.34,2.05142133]
[1642524563596,21.0183,137.4,137.34,2.05142133]
[1642524563798,21.0183,137.4,137.31,114.2]
[1642524564602,31.5383,137.4,137.31,114.2]
[1642524564799,33.32735272,137.4,137.31,114.2]
[1642524565396,33.32735272,137.4,137.28,2.3858927]
[1642524565596,44.12307023,137.38,137.28,2.3858927]
[1642524565806,21.03937814,137.35,137.28,2.3858927]
[1642524566097,13.432,137.34,137.28,2.3858927]
[1642524566298,73.19,137.33,137.28,2.3858927]
[1642524566498,2.912,137.32,137.28,2.3858927]
[1642524566699,13.682,137.32,137.28,2.3858927]
[1642524567097,37.90646848,137.31,137.28,2.3858927]
[1642524567300,10.9325,137.29,137.28,2.3858927]
[1642524567699,11.1825,137.29,137.28,2.3858927]
[1642524567900,5.69939994,137.3,137.28,2.3858927]
[1642524568300,0.25,137.29,137.28,2.3858927]
[1642524568498,5.69939994,137.3,137.28,2.3858927]
[1642524569401,0.25,137.29,137.28,2.3858927]
[1642524569600,6.25,137.29,137.28,2.3858927]
[1642524570003,0.25,137.29,137.28,2.3858927]
[1642524570200,5.69939994,137.3,137.28,2.3858927]
[1642524570401,5.69939994,137.3,137.28,2.7508927]
[1642524570801,5.69939994,137.3,137.28,2.3858927]
[1642524571009,5.69939994,137.3,137.26,2.912]
[1642524571202,48.00704446,137.29,137.23,2.912]
[1642524571401,10.9319,137.28,137.23,6.0]
[1642524571601,24.9449,137.28,137.23,6.0]
[1642524571806,0.25,137.27,137.23,6.0]
[1642524573406,11.1824,137.27,137.23,6.0]
[1642524573606,17.15540391,137.26,137.2,2.914]
[1642524573805,0.25,137.25,137.19,44.44781794]
[1642524574005,0.25,137.25,137.2,0.25]
[1642524574407,0.25,137.25,137.18,24.0599]
[1642524574605,18.6655,137.25,137.18,24.0599]
[1642524575104,21.5805,137.25,137.18,24.0599]
[1642524575505,21.5805,137.25,137.19,39.82267186]
[1642524575705,10.9345,137.25,137.19,40.07267186]
[1642524575903,10.52,137.3,137.19,40.07267186]
[1642524575904,2.915,137.29,137.19,40.07267186]
[1642524576104,10.52,137.3,137.2,6.0]
[1642524576305,10.52,137.3,137.21,0.25]
[1642524576506,10.52,137.3,137.2,6.0]
[1642524576805,40.19620885,137.29,137.21,0.25]
[1642524577008,51.12700885,137.29,137.2,29.5299]
[1642524577305,0.25,137.28,137.2,29.5299]
[1642524577505,2.914,137.27,137.2,6.0]
[1642524577706,0.25,137.26,137.15,36.6106]
[1642524577906,2.915,137.25,137.15,33.6966]
[1642524578107,10.9365,137.22,137.16,16.936]
[1642524578307,0.25,137.21,137.16,16.936]
[1642524578708,2.915,137.23,137.16,16.936]
[1642524578908,2.915,137.25,137.16,16.936]
[1642524579108,2.915,137.27,137.17,25.9226]
[1642524579309,0.25,137.24,137.17,25.9226]
[1642524579515,0.25,137.24,137.17,25.6726]
[1642524579911,2.915,137.23,137.18,0.25]
[1642524580109,0.25,137.24,137.18,41.66250873]
[1642524580309,11.1852,137.24,137.17,33.6927]
[1642524581009,11.1852,137.24,137.18,0.25]
[1642524581809,11.1852,137.24,137.18,11.1848]
[1642524582509,11.1852,137.24,137.18,10.9348]
[1642524583311,28.30313677,137.23,137.18,10.9348]
[1642524583709,0.25,137.22,137.18,10.9348]
[1642524584110,10.9341,137.25,137.19,0.25]
[1642524584311,0.25,137.23,137.19,11.1838]
[1642524584711,0.25,137.23,137.17,22.7576]
[1642524584909,48.51688133,137.23,137.18,0.25]
[1642524585611,59.45238133,137.23,137.18,0.25]
[1642524585812,59.45238133,137.23,137.16,6.0]
[1642524586018,59.45238133,137.23,137.15,2.915]
[1642524586212,2.915,137.22,137.15,2.915]
[1642524586416,2.915,137.22,137.13,24.3876]